fUSD/lending_fUSD_20240319
["ID","MTS","AMOUNT","RATE_DAILY","PERIOD"]
[319546163,1710841840991,-150.0,0.00049687,7]
[319546165,1710841841000,-150.0,0.00049704,7]
[319546166,1710841841009,-300.0,0.0004972,7]
[319546167,1710841841019,-178.31,0.0004974,2]
[319546168,1710841841028,-150.0,0.00049743,7]
[319546170,1710841841039,-150.0,0.00049748,7]
[319546172,1710841841048,-150.0,0.00049768,7]
[319546174,1710841841057,-150.0,0.00049775,7]
[319546175,1710841841069,-150.0,0.00049789,7]
[319546177,1710841841079,-150.0,0.00049791,7]
[319546179,1710841841088,-18587.30111905,0.00049798,4]
[319546181,1710841841099,-173.031918,0.00049798,50]
[319546183,1710841841109,-269.98525985,0.00049799,4]
[319546185,1710841841119,-2162.89736187,0.00049799,4]
[319546188,1710841841132,-250.0,0.00049799,7]
[319546190,1710841841142,-150.0,0.00049799,7]
[319546192,1710841841152,-1289.43,0.00049799,120]
[319546194,1710841841162,-1289.43,0.00049799,120]
[319546196,1710841841172,-150.0,0.000498,7]
[319546198,1710841841181,-8855.907512,0.000498,2]
[319546200,1710841841191,-204.53753077,0.00049803,30]
[319546202,1710841841201,-150.0,0.00049808,7]
[319546204,1710841841211,-150.0,0.00049808,7]
[319546206,1710841841220,-150.0,0.00049818,7]
[319546208,1710841841230,-158.79257558,0.00049818,30]
[319546210,1710841841239,-150.0,0.00049823,7]
[319546212,1710841841249,-1500.0,0.00049829,7]
[319546214,1710841841258,-1500.0,0.00049835,7]
[319546216,1710841841268,-150.0,0.00049846,7]
[319546218,1710841841279,-161.031914,0.00049848,50]
[319546220,1710841841288,-150.0,0.00049856,7]
[319546222,1710841841297,-150.0,0.00049856,7]
[319546224,1710841841307,-1000.0,0.000499,2]
[319546226,1710841841316,-1000.0,0.000499,2]
[319546228,1710841841326,-1000.0,0.000499,2]
[319546230,1710841841335,-1000.0,0.000499,2]
[319546232,1710841841344,-1000.0,0.000499,2]
[319546234,1710841841353,-1000.0,0.000499,2]
[319546236,1710841841363,-1000.0,0.000499,2]
[319546238,1710841841374,-1000.0,0.000499,2]
[319546240,1710841841383,-1000.0,0.000499,2]
[319546243,1710841841393,-1000.0,0.000499,2]
[319546245,1710841841403,-1000.0,0.000499,2]
[319546247,1710841841413,-1000.0,0.000499,2]
[319546249,1710841841423,-1000.0,0.000499,2]
[319546251,1710841841433,-1000.0,0.000499,2]
[319546253,1710841841443,-1000.0,0.000499,2]
[319546255,1710841841455,-1000.0,0.000499,2]
[319546257,1710841841466,-1000.0,0.000499,2]
[319546259,1710841841475,-1000.0,0.000499,2]
[319546261,1710841841485,-1000.0,0.000499,2]
[319546263,1710841841495,-1000.0,0.000499,2]
[319546265,1710841841506,-1000.0,0.000499,2]
[319546267,1710841841517,-1000.0,0.000499,2]
[319546269,1710841841527,-1000.0,0.000499,2]
[319546271,1710841841536,-1000.0,0.000499,2]
[319546273,1710841841546,-1000.0,0.000499,2]
[319546275,1710841841556,-1000.0,0.000499,2]
[319546277,1710841841566,-1000.0,0.000499,2]
[319546280,1710841841575,-1000.0,0.000499,2]
[319546282,1710841841585,-1000.0,0.000499,2]
[319546283,1710841841595,-1000.0,0.000499,2]
[319546286,1710841841605,-1000.0,0.000499,2]
[319546288,1710841841615,-1000.0,0.000499,2]
[319546320,1710841841901,-1000.0,0.000499,2]
[319546323,1710841841920,-1000.0,0.000499,2]
[319546325,1710841841930,-1000.0,0.000499,2]
[319546327,1710841841939,-1000.0,0.000499,2]
[319546329,1710841841948,-1000.0,0.000499,2]
[319546331,1710841841957,-1000.0,0.000499,2]
[319546333,1710841841967,-1000.0,0.000499,2]
[319546335,1710841841976,-1000.0,0.000499,2]
[319546337,1710841841986,-1000.0,0.000499,2]
[319546338,1710841841995,-1000.0,0.000499,2]
[319546340,1710841842005,-1000.0,0.000499,2]
[319546343,1710841842015,-1000.0,0.000499,2]
[319546345,1710841842024,-1000.0,0.000499,2]
[319546347,1710841842033,-1000.0,0.000499,2]
[319546348,1710841842044,-1000.0,0.000499,2]
[319546350,1710841842054,-1000.0,0.000499,2]
[319546353,1710841842063,-1000.0,0.000499,2]
[319546354,1710841842075,-1000.0,0.000499,2]
[319546357,1710841842089,-1000.0,0.000499,2]
[319546359,1710841842099,-1000.0,0.000499,2]
[319546361,1710841842108,-1000.0,0.000499,2]
[319546363,1710841842117,-1000.0,0.000499,2]
[319546365,1710841842128,-1000.0,0.000499,2]
[319546367,1710841842137,-1000.0,0.000499,2]
[319546369,1710841842146,-1000.0,0.000499,2]
[319546371,1710841842156,-1000.0,0.000499,2]
[319546373,1710841842166,-1000.0,0.000499,2]
[319546375,1710841842176,-1000.0,0.000499,2]
[319546377,1710841842186,-1000.0,0.000499,2]
[319546379,1710841842196,-1000.0,0.000499,2]
[319546381,1710841842206,-1000.0,0.000499,2]
[319546383,1710841842216,-1000.0,0.000499,2]
[319546384,1710841842225,-1000.0,0.000499,2]
[319546385,1710841842235,-1000.0,0.000499,2]
[319546386,1710841842244,-1000.0,0.000499,2]
[319546387,1710841842253,-1000.0,0.000499,2]
[319546388,1710841842263,-335.0,0.000499,2]
[319546389,1710841842273,-1600.0,0.000499,18]
[319546390,1710841842282,-302.91017278,0.00049901,7]
[319546391,1710841842292,-150.0,0.00049923,7]
[319546392,1710841842302,-1926.27,0.00049945,120]
[319546393,1710841842311,-500.0,0.00049945,120]
[319546395,1710841842320,-150.0,0.00049947,7]
[319546397,1710841842330,-150.0,0.00049963,7]
[319546398,1710841842339,-150.0,0.00049965,7]
[319546400,1710841842349,-155.06867801,0.00049973,30]
[319546401,1710841842358,-150.0,0.00049982,7]
[319546403,1710841842368,-150.0,0.00049988,7]
[319546405,1710841842379,-223.69659944,0.00049994,4]
[319546407,1710841842388,-2649.4366341,0.00049994,2]
[319546408,1710841842398,-21332.1830293,0.00049994,2]
[319546410,1710841842407,-17909.1262967,0.00049994,2]
[319546411,1710841842418,-205.30512879,0.00049996,2]
[319546412,1710841842429,-5003.83110002,0.00049996,2]
[319546413,1710841842439,-896.72737947,0.00049997,2]
[319546415,1710841842448,-1591.2295005,0.00049997,2]
[319546416,1710841842457,-4276.8133281,0.00049997,2]
[319546417,1710841842467,-455.09101079,0.00049997,2]
[319546418,1710841842477,-150.0,0.00049998,7]
[319546420,1710841842487,-978.66006779,0.00049999,4]
[319546422,1710841842496,-1289.43,0.00049999,120]
[319546424,1710841842506,-1000.0,0.00049999,120]
[319546425,1710841842515,-182842.08685313,0.0005,50]
[319546426,1710841842533,-300.001004,0.0005,50]
[319546427,1710841842545,-16857.91214287,0.0005,50]
[319546428,1710841842554,-318.74421578,0.0005,30]
[319546429,1710841842564,-29201.02673938,0.0005,30]
[319546430,1710841842575,-254.15009224,0.0005,7]
[319546431,1710841842584,-500.0,0.0005,30]
[319546432,1710841842593,-500.0,0.0005,10]
[319546433,1710841842603,-10675.98952672,0.0005,30]
[319546438,1710841843249,-658.89701571,0.0004499,30]
[319546439,1710841843265,-115.58298429,0.0004499,30]
[319546440,1710841843275,-150.0,0.00049366,7]
[319546441,1710841843285,-154.77112083,0.0004975,7]
[319546442,1710841843295,-150.0,0.00049774,7]
[319546443,1710841843304,-105.78838552,0.00049795,7]
[319546444,1710841843316,-44.21161448,0.00049795,7]
[319546445,1710841843326,-150.0,0.00049836,7]
[319546446,1710841843335,-62.7186757,0.00049907,7]
[319546447,1710841843347,-87.2813243,0.00049907,7]
[319546448,1710841843357,-150.0,0.0004992,7]
[319546449,1710841843366,-150.0,0.00049949,7]
[319546450,1710841843378,-5962.7186757,0.0005,30]
[319546451,1710841843418,-6186.79719226,0.0005,30]
[319546452,1710841843430,-902.49460532,0.0005,30]
[319546453,1710841843441,-585.57,0.0005,7]
[319546454,1710841843451,-500.0,0.0005,7]
[319546455,1710841843460,-2381.74727877,0.0005,5]
[319546456,1710841843470,-2.44243211,0.0005,60]
[319546457,1710841843482,-425.36192772,0.0005,60]
[319546458,1710841843491,-814.60639936,0.0005,120]
[319546459,1710841843541,-6557.17425883,0.0005,120]
[319546460,1710841843552,-150.0,0.0005,30]
[319546461,1710841843562,-3226.87,0.0005,120]
[319546462,1710841843572,-7055.82471069,0.0005,120]
[319546463,1710841843584,-344.585,0.0005,120]
[319546464,1710841843637,-1545.17189656,0.0005,120]
[319546465,1710841843648,-6054.40839275,0.0005,120]
[319546466,1710841843658,-15000.0,0.0005,120]
[319546467,1710841843668,-705.31,0.0005,120]
[319546468,1710841843678,-19999.99,0.0005,120]
[319546469,1710841843687,-30000.0,0.0005,120]
[319546470,1710841843697,-1258.999999,0.0005,120]
[319546471,1710841843707,-212.8,0.0005,120]
[319546472,1710841843717,-6869.09,0.0005,120]
[319546473,1710841843727,-257.39,0.0005,120]
[319546474,1710841843737,-5782.19578021,0.0005,120]
[319546475,1710841843795,-649.98451497,0.0005,120]
[319546476,1710841844865,-8567.81970482,0.0005,120]
[319546477,1710841844875,-2574.0,0.0005,11]
[319546478,1710841844889,-95893.0,0.0005,112]
[319546479,1710841844899,-171641.4934992,0.00050031,2]
[319546480,1710841844909,-2225.5817939,0.00050031,2]
[319546481,1710841844919,-1289.43,0.00050065,120]
[319546482,1710841844929,-1070.297359,0.000501,30]
[319546483,1710841844939,-15000.0,0.00050125,120]
[319546484,1710841844949,-15000.0,0.00050125,120]
[319546485,1710841844960,-152.0,0.00050134,4]
[319546486,1710841844970,-173.031917,0.00050148,58]
[319546487,1710841844980,-30000.0,0.00050167,120]
[319546488,1710841844990,-15000.0,0.0005025,120]
[319546489,1710841845001,-15000.0,0.0005025,120]
[319546490,1710841845011,-179.42580742,0.00050288,2]
[319546491,1710841845021,-220.0,0.000503,30]
[319546492,1710841845031,-349.0,0.000503,30]
[319546493,1710841845042,-6911.94349789,0.00050315,2]
[319546494,1710841845055,-30000.0,0.00050333,120]
[319546495,1710841845065,-500.0,0.00050347,7]
[319546496,1710841845079,-1926.27,0.00050356,120]
[319546497,1710841845090,-500.0,0.00050356,120]
[319546498,1710841845100,-15000.0,0.00050375,120]
[319546499,1710841845110,-15000.0,0.00050375,120]
[319546500,1710841845122,-30365.0411814,0.000504,30]
[319546501,1710841845135,-161.031917,0.00050448,58]
[319546502,1710841845146,-12054.54,0.000505,120]
[319546503,1710841845155,-30000.0,0.000505,120]
[319546504,1710841845166,-15000.0,0.000505,120]
[319546505,1710841845176,-173.031917,0.00050548,60]
[319546506,1710841845186,-15000.0,0.00050625,120]
[319546507,1710841845196,-30000.0,0.00050667,120]
[319546508,1710841845206,-3264.811,0.00050719,120]
[319546509,1710841845217,-3264.811,0.00050719,120]
[319546510,1710841845227,-3264.811,0.00050719,120]
[319546511,1710841845237,-3264.812,0.00050719,120]
[319546512,1710841845247,-3264.811,0.00050719,120]
[319546513,1710841845257,-150.0,0.00050723,30]
[319546514,1710841845268,-161.031917,0.00050748,72]
[319546515,1710841845278,-15000.0,0.0005075,120]
[319546516,1710841845287,-1926.27,0.00050767,120]
[319546517,1710841845297,-500.0,0.00050767,120]
[319546518,1710841845307,-785.74390002,0.0005077,7]
[319546519,1710841845317,-173.031918,0.00050798,51]
[319546520,1710841845327,-163.70130469,0.000508,2]
[319546521,1710841845337,-30000.0,0.00050833,120]
[319546522,1710841845347,-173.031917,0.00050848,69]
[319546524,1710841845357,-15000.0,0.00050875,120]
[319546526,1710841845366,-750.0,0.00050895,7]
[319546527,1710841845379,-11007.15949875,0.000509,60]
[319546528,1710841845389,-2927.54374,0.000509,30]
[319546529,1710841845398,-6846.96891817,0.000509,27]
[319546530,1710841845408,-2200.0,0.000509,18]
[319546531,1710841845417,-186.5806602,0.000509,10]
[319546532,1710841845427,-4163.26201026,0.000509,30]
[319546533,1710841845437,-1968.84172084,0.000509,2]
[319546534,1710841845447,-272.23,0.00050934,2]
[319546535,1710841845457,-161.031917,0.00050948,61]
[319546536,1710841845467,-500.0,0.00050958,60]
[319546537,1710841845478,-10000.0,0.0005098,14]
[319546538,1710841845488,-500.0,0.00050999,60]
[319546540,1710841845498,-151.0,0.00050999,120]
[319546542,1710841845508,-151.0,0.00050999,120]
[319546544,1710841845518,-151.0,0.00050999,7]
[319546546,1710841845527,-151.0,0.00050999,120]
[319546548,1710841845537,-151.0,0.00050999,120]
[319546550,1710841845546,-151.056935,0.00050999,120]
[319546552,1710841845556,-151.0,0.00050999,120]
[319546554,1710841845565,-151.0,0.00050999,120]
[319546556,1710841845575,-151.0,0.00050999,120]
[319546559,1710841845586,-151.0,0.00050999,120]
[319546561,1710841845595,-1289.43,0.00050999,120]
[319546563,1710841845605,-200000.0,0.00051,51]
[319546565,1710841845614,-500.0,0.00051,120]
[319546567,1710841845623,-7165.49994947,0.00051,30]
[319546569,1710841845636,-200.0,0.00051,51]
[319546571,1710841845647,-14736.8395404,0.00051,30]
[319546573,1710841845656,-30000.0,0.00051,120]
[319546575,1710841845665,-151.0,0.00051,14]
[319546577,1710841845674,-151.0,0.00051,120]
[319546579,1710841845684,-151.0,0.00051,120]
[319546581,1710841845693,-151.0,0.00051,120]
[319546583,1710841845703,-151.0,0.00051,120]
[319546585,1710841845713,-151.0,0.00051,120]
[319546587,1710841845722,-175.599932,0.00051,120]
[319546589,1710841845731,-175.599932,0.00051,120]
[319546591,1710841845741,-151.0,0.00051,120]
[319546593,1710841845750,-151.0,0.00051,120]
[319546595,1710841845760,-152.430632,0.00051,5]
[319546597,1710841845769,-151.0,0.00051,120]
[319546599,1710841845778,-151.0,0.00051,120]
[319546601,1710841845787,-249.0,0.00051,100]
[319546603,1710841845797,-151.0,0.00051,120]
[319546605,1710841845806,-151.0,0.00051,120]
[319546607,1710841845816,-151.0,0.00051,30]
[319546608,1710841845825,-151.0,0.00051,120]
[319546609,1710841845835,-151.0,0.00051,120]
[319546610,1710841845844,-151.0,0.00051,120]
[319546611,1710841845854,-151.0,0.00051,120]
[319546612,1710841845863,-153.357515,0.00051,120]
[319546613,1710841845872,-151.0,0.00051,120]
[319546614,1710841845885,-152.635247,0.00051,120]
[319546615,1710841845895,-151.0,0.00051,120]
[319546616,1710841845905,-151.0,0.00051,120]
[319546617,1710841845918,-418.482942,0.00051,120]
[319546618,1710841845928,-203.895515,0.00051,120]
[319546619,1710841845950,-418.482942,0.00051,120]
[319546620,1710841845959,-151.0,0.00051,120]
[319546621,1710841845968,-203.895515,0.00051,120]
[319546622,1710841845978,-151.0,0.00051,30]
[319546623,1710841845987,-151.0,0.00051,30]
[319546624,1710841845997,-151.0,0.00051,120]
[319546625,1710841846006,-151.0,0.00051,120]
[319546626,1710841846017,-151.0,0.00051,120]
[319546627,1710841846027,-152.357203,0.00051,120]
[319546628,1710841846036,-151.0,0.00051,7]
[319546629,1710841846047,-151.0,0.00051,120]
[319546630,1710841846057,-151.0,0.00051,120]
[319546631,1710841846068,-15000.0,0.00051,120]
[319546632,1710841846080,-151.0,0.00051,7]
[319546633,1710841846091,-151.0,0.00051,120]
[319546635,1710841846100,-151.0,0.00051,120]
[319546637,1710841846110,-151.0,0.00051,120]
[319546639,1710841846120,-150.0,0.00051,15]
[319546642,1710841846135,-17577.0,0.00051,112]
[319546644,1710841846146,-341.07,0.00051061,120]
[319546646,1710841846155,-175.58196687,0.00051081,60]
[319546648,1710841846166,-15000.0,0.00051125,120]
[319546650,1710841846177,-30000.0,0.00051167,120]
[319546651,1710841846187,-272.606761,0.00051167,120]
[319546652,1710841846197,-151.0,0.00051167,120]
[319546653,1710841846206,-272.606761,0.00051167,120]
[319546654,1710841846216,-151.0,0.00051167,120]
[319546655,1710841846226,-151.0,0.00051167,120]
[319546656,1710841846235,-232.816236,0.00051167,120]
[319546657,1710841846246,-151.0,0.00051167,120]
[319546658,1710841846255,-151.0,0.00051167,120]
[319546659,1710841846265,-1368.35071,0.00051167,120]
[319546660,1710841846275,-1368.35071,0.00051167,120]
[319546661,1710841846284,-153.128479,0.00051167,120]
[319546662,1710841846294,-151.0,0.00051167,120]
[319546663,1710841846303,-153.128479,0.00051167,120]
[319546664,1710841846312,-151.0,0.00051167,120]
[319546665,1710841846322,-285.307849,0.00051167,120]
[319546666,1710841846331,-151.0,0.00051167,120]
[319546667,1710841846340,-151.0,0.00051167,30]
[319546668,1710841846350,-1926.27,0.00051178,120]
[319546669,1710841846359,-500.0,0.00051178,120]
[319546670,1710841846369,-3220.39,0.0005125,120]
[319546671,1710841846382,-2227.77089769,0.000513,12]
[319546672,1710841846391,-8989.62601908,0.00051304,12]
[319546673,1710841846401,-6846.96891816,0.0005132,28]
[319546674,1710841846411,-30000.0,0.00051333,120]
[319546675,1710841846420,-1000.0,0.00051443,7]
[319546676,1710841846430,-161.031917,0.00051448,59]
[319546677,1710841846439,-150.54653537,0.00051469,60]
[319546678,1710841846449,-30000.0,0.000515,120]
[319546679,1710841846459,-249.0,0.000515,101]
[319546680,1710841846469,-500.0,0.00051506,60]
[319546681,1710841846479,-641.1,0.00051572,120]
[319546682,1710841846488,-1926.27,0.00051589,120]
[319546683,1710841846497,-500.0,0.00051589,120]
[319546684,1710841846507,-158.79257565,0.00051594,60]
[319546685,1710841846516,-455.09101079,0.00051664,2]
[319546686,1710841846526,-30000.0,0.00051667,120]
[319546687,1710841846536,-10000.0,0.000517,117]
[319546688,1710841846546,-2005.0,0.000517,117]
[319546689,1710841846555,-289758.41546409,0.00051739,35]
[319546690,1710841847240,-35281.89140727,0.00051739,35]
[319546691,1710841847253,-347.06,0.00051739,35]
[319546692,1710841847266,-401.91663883,0.00051739,35]
[319546693,1710841847282,-532.88000004,0.00051739,35]
[319546694,1710841847294,-1591.875,0.00051739,35]
[319546695,1710841847306,-99976.54417549,0.00051739,35]
[319546696,1710841847317,-802.50664446,0.00051739,35]
[319546697,1710841847336,-715.85225674,0.00051739,35]
[319546698,1710841847348,-1045.79908188,0.00051739,35]
[319546699,1710841848249,-196.77183842,0.00038699,4]
[319546700,1710841848259,-659.34902664,0.00040034,4]
[319546701,1710841848273,-304.97611445,0.00040034,4]
[319546702,1710841848283,-67.12138555,0.00044989,4]
[319546703,1710841848298,-462.29152881,0.00044989,4]
[319546704,1710841848310,-1056.51989003,0.00044989,4]
[319546705,1710841848319,-294.19997222,0.00044989,4]
[319546706,1710841848329,-155.0,0.00044989,4]
[319546707,1710841848338,-155.0,0.00044989,4]
[319546708,1710841848347,-155.27986832,0.00044989,4]
[319546709,1710841848357,-151.0,0.00051,120]
[319546710,1710841848366,-1612894.48599824,0.00051739,35]
[319546711,1710841848377,-25127.1467363,0.00051739,35]
[319546712,1710841848390,-4649.20835009,0.00051739,35]
[319546713,1710841848439,-2947.47,0.00051739,35]
[319546714,1710841848452,-278.16548255,0.00051739,35]
[319546715,1710841848479,-389.50758122,0.00051739,35]
[319546716,1710841848491,-1995.34,0.00051739,35]
[319546717,1710841848502,-500.0,0.00051739,35]
[319546718,1710841848513,-5240.08156891,0.00051739,35]
[319546719,1710841848524,-308.43440764,0.00051739,35]
[319546720,1710841848535,-431335.42379284,0.00051739,35]
[319546721,1710841848548,-377.87750004,0.00051739,35]
[319546722,1710841848563,-404.75808895,0.00051739,35]
[319546723,1710841848574,-398.25,0.00051739,35]
[319546724,1710841848589,-1622.06312208,0.00051739,35]
[319546725,1710841848600,-20868.48,0.00051739,35]
[319546726,1710841849503,-510.76545276,0.00043231,7]
[319546727,1710841849555,-860.23454724,0.00043231,7]
[319546728,1710841849564,-360.12491363,0.00044988,30]
[319546729,1710841849574,-155.0,0.00044988,4]
[319546730,1710841849584,-1378.93836802,0.00044989,4]
[319546731,1710841849593,-535.3809211,0.00044989,4]
[319546732,1710841849603,-1125.42116839,0.00044989,4]
[319546733,1710841849612,-300.0,0.00048849,2]
[319546734,1710841849621,-516.76,0.000497,30]
[319546735,1710841849635,-150.0,0.000497,30]
[319546736,1710841849644,-346.82,0.000497,30]
[319546737,1710841849653,-150.0,0.000497,30]
[319546738,1710841849663,-150.0,0.000497,30]
[319546739,1710841849674,-150.0,0.000497,30]
[319546740,1710841849683,-5003.83110002,0.00049996,2]
[319546741,1710841849693,-6423.51542464,0.00051739,35]
[319546742,1710841849742,-865.20559029,0.00051739,35]
[319546743,1710841849790,-1277.02650256,0.00051739,35]
[319546744,1710841849802,-26323.50352652,0.00051739,35]
[319546745,1710841849813,-30615.076025,0.00051739,35]
[319546746,1710841849825,-8727.31043329,0.00051739,35]
[319546747,1710841849838,-454.68489641,0.00051739,35]
[319546748,1710841849849,-63226.85769614,0.00051739,35]
[319546749,1710841849861,-628.61057002,0.00051739,35]
[319546750,1710841849872,-1375.74966,0.00051739,35]
[319546751,1710841849886,-466.70474391,0.00051739,35]
[319546752,1710841849897,-417.92107087,0.00051739,35]
[319546753,1710841849912,-292.50270122,0.000348,2]
[319546754,1710841849923,-1471.2205633,0.000348,2]
[319546755,1710841849936,-1123.90862778,0.000348,2]
[319546756,1710841849945,-71496.09137348,0.00051739,35]
[319546757,1710841849957,-466.98336431,0.00051739,35]
[319546758,1710841849968,-2303.75270085,0.00051739,35]
[319546759,1710841849983,-2901.04000001,0.00051739,35]
[319546760,1710841849994,-2540.12,0.00051739,35]
[319546761,1710841850004,-891.27138097,0.00051739,35]
[319546762,1710841850876,339.37326981,0.00024,2]
[319546763,1710841853737,178.8,0.0002,2]
[319546764,1710841856735,331.96395506,0.0002,7]
[319546765,1710841870370,1460309.75144562,0.00014,2]
[319546766,1710841870402,119471.19254112,0.00014,2]
[319546772,1710841882124,9178.99675879,9e-05,2]
[319546773,1710841894071,11871.57861598,0.0001,2]
[319546774,1710841898675,962.44906703,0.00011,2]
[319546775,1710841899884,543.63770815,0.00024581,120]
[319546776,1710841903395,358515.78301708,0.000264,5]
[319546777,1710841916697,31884.51169464,6.94e-05,2]
[319546779,1710841941693,6000.0,0.00024581,2]
[319546780,1710842016855,11868.30792539,0.00024581,2]
[319546781,1710842026044,-155.0,0.00013999,2]
[319546782,1710842026067,-211.13956938,0.00014,2]
[319546783,1710842026090,-1216.73937758,0.000165,2]
[319546784,1710842026113,-308.37540429,0.00017888,2]
[319546785,1710842026149,-264.88877366,0.00017888,2]
[319546786,1710842026174,-22843.85687509,0.00017889,2]
[319546787,1710842123812,-253.26944019,0.000137,2]
[319546788,1710842123836,-308.37540429,0.00013998,2]
[319546789,1710842123867,-264.88877366,0.00013998,2]
[319546790,1710842123895,-300.0,0.00013999,2]
[319546791,1710842123924,-150.0,0.00013999,2]
[319546792,1710842123950,-4303.04111929,0.00013999,2]
[319546793,1710842123977,-39420.42526257,0.00014,2]
[319546794,1710842125256,-4178.09653229,0.00014,2]
[319546795,1710842125280,-210.0,0.00015399,2]
[319546796,1710842125303,-229.0,0.00016939,2]
[319546797,1710842125328,-155.0,0.00017887,2]
[319546798,1710842125351,-1118.12299112,0.00017888,2]
[319546799,1710842125383,-61179.99739622,0.00017889,2]
[319546800,1710842125408,-643.37964686,0.00018,2]
[319546801,1710842125434,-1797.0,0.000188,2]
[319546802,1710842125457,-296.79548759,0.000189,2]
[319546803,1710842125481,-2500.0,0.000237,2]
[319546804,1710842125504,-1500.0,0.000242,2]
[319546805,1710842125530,-341.56,0.0002461,2]
[319546806,1710842125553,-4580.7,0.00024653,2]
[319546807,1710842125577,-1500.0,0.000247,2]
[319546808,1710842125600,-280.17651567,0.00025,2]
[319546809,1710842125629,-221.06671096,0.0002513,2]
[319546810,1710842125652,-176.52,0.00025283,2]
[319546811,1710842125676,-157.67768704,0.00025341,2]
[319546812,1710842125699,-2751.0,0.0002539,2]
[319546813,1710842125723,-500.0,0.00025487,2]
[319546814,1710842138088,2042.43027229,0.00013998,2]
[319546815,1710842140158,-151.26304278,0.00025635,2]
[319546816,1710842140181,-209.83704953,0.00025652,2]
[319546817,1710842140207,-250.0,0.00025664,2]
[319546818,1710842140234,-221.06671096,0.00025733,2]
[319546819,1710842140259,-154.41242457,0.00025962,2]
[319546820,1710842140283,-250.0,0.00026019,2]
[319546821,1710842140307,-221.06671096,0.00026156,2]
[319546822,1710842140330,-167.0,0.00026189,2]
[319546823,1710842140353,-151.71800216,0.00026196,2]
[319546824,1710842140380,-157.67768704,0.00026364,2]
[319546825,1710842140405,-6672.89630186,0.00026373,2]
[319546826,1710842140430,-151.6946114,0.00026373,2]
[319546827,1710842140453,-386.11588003,0.00026373,2]
[319546828,1710842140477,-296.79548759,0.00026398,2]
[319546829,1710842140501,-155.0,0.00026399,3]
[319546830,1710842140524,-485.22443864,0.00026399,2]
[319546831,1710842140547,-239918.23165248,0.000264,5]
[319546832,1710842140924,-250000.0,0.000264,5]
[319546833,1710842144807,-250000.0,0.000264,5]
[319546834,1710842145583,-250000.0,0.000264,5]
[319546835,1710842200405,-643.37964686,0.0002587,2]
[319546836,1710842200436,-260.50435807,0.00026399,2]
[319546837,1710842200462,-99096.11599507,0.000264,5]
[319546838,1710842221727,500.0,0.00016438,2]
[319546839,1710842237956,382.5027391,0.00025271,2]
[319546840,1710842246229,166.66666666,0.00025323,2]
[319546841,1710842248413,170.41,0.00016712,2]
[319546842,1710842254361,-179.589978,0.0002562,2]
[319546843,1710842254385,-152.81505466,0.00025695,2]
[319546844,1710842319053,164.49,0.00023789,2]
[319546846,1710842418372,206.0,0.000189,2]
[319546847,1710842420995,208.43,0.00010247,2]
[319546848,1710842421292,208.43,0.00012511,2]
[319546849,1710842421604,208.43,0.00014775,2]
[319546850,1710842421974,208.43,0.00017039,2]
[319546851,1710842422299,208.43,0.00019302,2]
[319546852,1710842422746,208.43,0.00021566,2]
[319546853,1710842423000,208.43,0.0002383,2]
[319546855,1710842479278,178.8,0.0002,2]
[319546857,1710842537533,369.75264779,0.00025172,2]